bitfinex-derivatives/quotes_SOLF0:USTF0_20251107
["timestamp","ask_amount","ask_price","bid_price","bid_amount"]
[1762539323468,0.04698322,161.6,161.56,0.04399763]
[1762539323469,3.00698322,161.6,161.56,0.04399763]
[1762539323966,0.04698322,161.6,161.56,3.02399763]
[1762539324967,3.00698322,161.6,161.56,3.02399763]
[1762539325671,0.04698322,161.6,161.56,3.02399763]
[1762539326467,2.96,161.59,161.56,0.04399763]
[1762539327464,5.5737,161.58,161.56,0.04399763]
[1762539327667,8.5337,161.58,161.56,0.04399763]
[1762539327860,2.96,161.57,161.56,0.04399763]
[1762539329170,5.5743,161.56,161.54,5.82058374]
[1762539329371,2.96,161.55,161.54,8.374e-05]
[1762539329686,2.96,161.55,161.45,2.98]
[1762539329860,8.5356,161.53,161.45,2.98]
[1762539330061,5.5756,161.53,161.45,2.98]
[1762539330266,0.04535884,161.51,161.47,3.02367391]
[1762539332771,5.62145884,161.51,161.47,3.02367391]
[1762539332968,0.04535884,161.51,161.47,3.02367391]
[1762539333366,0.04535884,161.51,161.47,8.60087391]
[1762539333573,0.04535884,161.51,161.47,3.02367391]
[1762539333970,0.04535884,161.51,161.5,3.12]
[1762539336478,2.92,161.61,161.53,3.12]
[1762539336776,2.92,161.59,161.53,3.12]
[1762539337172,5.5744,161.56,161.53,3.12]
[1762539337371,2.92,161.56,161.48,3.12]
[1762539337568,2.96011962,161.56,161.53,0.04175384]
[1762539338176,8.4948,161.55,161.53,0.04175384]
[1762539338780,7.76617689,161.54,161.53,0.04175384]
[1762539338974,5.5748,161.55,161.53,0.04175384]
[1762539340177,2.96011962,161.56,161.53,0.04175384]
[1762539340972,0.04011962,161.56,161.53,3.13175384]
[1762539341874,0.04011962,161.56,161.53,8.70695384]
[1762539342094,0.04011962,161.56,161.54,3.09]
[1762539342678,0.04011962,161.56,161.55,3.09]
[1762539352386,0.04011962,161.56,161.54,8.6649]
[1762539352886,4.87034466,161.55,161.53,0.04175384]
[1762539353188,3.00011962,161.56,161.53,0.04175384]
[1762539353391,7.8328287,161.55,161.53,0.04175384]
[1762539353693,2.96,161.53,161.48,4.86]
[1762539353987,7.08058976,161.54,161.48,4.86]
[1762539353988,7.83368057,161.52,161.48,4.86]
[1762539354295,2.96,161.52,161.48,7.95]
[1762539354888,4.87443696,161.51,161.49,3.09]
[1762539355084,0.04477014,161.52,161.49,3.09]
[1762539357087,0.04477014,161.52,161.51,3.09]
[1762539358085,2.96,161.59,161.53,8.6652]
[1762539358279,10.44529436,161.58,161.53,8.6652]
[1762539358487,10.44529436,161.58,161.51,2.20776106]
[1762539358488,7.83159436,161.57,161.51,2.20776106]
[1762539358694,4.87159436,161.56,161.52,3.09]
[1762539358893,16.48947727,161.6,161.53,3.09]
[1762539359084,16.48947727,161.6,161.55,0.04525302]
[1762539359085,0.04167841,161.58,161.55,0.04525302]
[1762539359284,0.04167841,161.58,161.55,3.13525302]
[1762539361387,3.00167841,161.58,161.55,0.04525302]
[1762539361600,0.04167841,161.58,161.55,3.13525302]
[1762539361801,7.83258594,161.57,161.55,0.04525302]
[1762539362084,0.04167841,161.58,161.55,0.04525302]
[1762539362292,4.8731418,161.57,161.55,0.04525302]
[1762539362496,3.00167841,161.58,161.55,0.04525302]
[1762539362693,4.8734463,161.57,161.55,0.04525302]
[1762539362884,2.96,161.57,161.55,0.04525302]
[1762539363084,7.83351932,161.56,161.55,0.04525302]
[1762539363490,4.87351932,161.56,161.55,0.04525302]
[1762539363693,5.20943947,161.58,161.55,0.04525302]
[1762539363890,7.83391003,161.57,161.55,0.04525302]
[1762539364093,0.04167841,161.58,161.55,0.04525302]
[1762539364285,4.8745532,161.57,161.55,3.20525302]
[1762539364485,3.00167841,161.58,161.55,0.04525302]
[1762539364792,4.87469114,161.57,161.55,0.04525302]
[1762539364979,3.00167841,161.58,161.55,0.04525302]
[1762539365189,0.04167841,161.58,161.55,3.20525302]
[1762539366095,0.04167841,161.58,161.56,8.7342]
[1762539366691,0.04167841,161.58,161.57,3.16]
[1762539367291,4.95263172,161.58,161.57,3.16]
[1762539367589,0.04167841,161.58,161.57,3.16]
[1762539368493,10.91647727,161.64,161.59,5.5732]
[1762539368689,4.91032987,161.63,161.6,3.16]
[1762539368900,4.91032987,161.62,161.57,3.16]
[1762539369090,2.96,161.61,161.57,3.16]
[1762539369294,4.91110751,161.6,161.57,3.16]
[1762539369591,0.04448616,161.6,161.57,3.2007451]
[1762539369894,4.9108355,161.59,161.57,3.2007451]
[1762539370086,0.04448616,161.6,161.57,3.2007451]
[1762539370287,4.91107542,161.59,161.57,3.2007451]
[1762539370598,0.04448616,161.6,161.57,3.2007451]
[1762539370795,4.91093825,161.59,161.57,3.2007451]
[1762539371089,4.91093825,161.58,161.57,0.0407451]
[1762539371292,10.07869931,161.58,161.57,0.0407451]
[1762539371493,2.96,161.57,161.51,3.16]
[1762539371684,7.87093825,161.56,161.51,8.7359]
[1762539371893,2.20776106,161.58,161.52,3.16]
[1762539372087,2.96,161.55,161.49,4.52]
[1762539372397,4.95272165,161.54,161.5,8.77965136]
[1762539372587,2.96,161.52,161.5,0.04345136]
[1762539372793,2.96,161.51,161.5,0.04345136]
[1762539372994,2.96,161.5,161.49,4.52]
[1762539373192,10.08098026,161.5,161.49,4.52]
[1762539374389,7.8732192,161.5,161.49,4.52]
[1762539374699,4.9132192,161.5,161.49,4.52]
[1762539375586,3.00050446,161.54,161.49,7.68]
[1762539375787,4.90793684,161.53,161.5,3.16]
[1762539375987,4.9074877,161.52,161.5,3.16]
[1762539376196,4.9074877,161.52,161.49,4.52]
[1762539376197,4.9074877,161.51,161.49,4.52]
[1762539376393,7.86777206,161.5,161.49,4.52]
[1762539379093,4.90777206,161.5,161.49,4.52]
[1762539379497,7.86777206,161.5,161.49,4.52]
[1762539380388,8.5367,161.49,161.48,0.04120511]
[1762539380590,13.44447206,161.49,161.48,0.04120511]
[1762539380995,7.86777206,161.49,161.48,0.04120511]
[1762539381194,0.04561978,161.5,161.48,0.04120511]
[1762539381496,4.90088321,161.49,161.48,0.04120511]
[1762539381690,7.86088321,161.49,161.48,0.04120511]
[1762539381888,4.90088321,161.49,161.48,0.04120511]
[1762539382093,3.00561978,161.5,161.48,0.04120511]
[1762539382897,7.860022,161.49,161.48,0.04120511]
[1762539383093,2.96,161.48,161.44,6.09]
[1762539383301,2.96,161.46,161.44,6.09]
[1762539383496,4.89817311,161.45,161.38,3.16]
[1762539383702,4.89817311,161.45,161.37,3.75]
[1762539383703,2.96,161.43,161.37,3.75]
[1762539384001,2.96,161.41,161.37,3.75]
[1762539384203,2.96,161.4,161.38,0.04356061]
[1762539384799,3.00071948,161.42,161.38,0.04356061]
[1762539385197,8.54,161.4,161.38,0.04356061]
[1762539385398,2.96,161.39,161.38,0.04356061]
[1762539387200,2.96,161.41,161.38,0.04356061]
[1762539387402,2.96,161.39,161.38,0.04356061]
[1762539389300,2.96,161.41,161.38,0.04356061]
[1762539389493,0.04071948,161.42,161.38,3.20356061]
[1762539389897,3.00071948,161.42,161.38,0.04356061]
[1762539390707,0.04071948,161.42,161.39,3.16]
[1762539391296,2.96,161.53,161.41,3.16]
[1762539391508,7.82962021,161.52,161.41,3.16]
[1762539391701,4.86916306,161.51,161.41,3.16]
[1762539391905,8.5365,161.5,161.41,3.16]
[1762539392308,5.5769,161.49,161.43,2.93]
[1762539392508,5.7754421,161.55,161.38,2.93]
[1762539392509,3.0071045,161.45,161.38,2.93]
[1762539392711,0.0471045,161.45,161.42,2.93]
[1762539392916,0.0396052,161.45,161.42,2.9742823]
[1762539393210,2.9996052,161.45,161.42,0.0442823]
[1762539393510,2.96,161.44,161.42,0.0442823]
[1762539394213,2.96,161.43,161.42,0.0442823]
[1762539395911,2.9996052,161.45,161.42,0.0442823]
[1762539397408,2.96,161.43,161.42,0.0442823]
[1762539399212,7.92501971,161.43,161.42,0.0442823]
[1762539399411,2.96,161.44,161.42,0.0442823]
[1762539399710,2.96,161.43,161.42,0.0442823]
[1762539400013,7.92488115,161.43,161.36,2.93]
[1762539400208,2.96,161.4,161.32,8.91]
[1762539400718,2.96,161.4,161.33,2.94]
[1762539401211,0.03984125,161.38,161.35,2.97907043]
[1762539401414,3.00984125,161.38,161.35,0.03907043]
[1762539404914,0.03984125,161.38,161.35,0.03907043]
[1762539406510,2.97,161.36,161.35,0.03907043]
[1762539406706,7.93162847,161.36,161.35,0.03907043]
[1762539407504,5.5822,161.33,161.32,5.98]
[1762539407709,13.4747688,161.33,161.32,5.98]
[1762539408312,13.4747688,161.33,161.24,8.5251]
[1762539408313,2.93,161.3,161.24,8.5251]
[1762539408516,2.93,161.34,161.27,7.73]
[1762539408818,0.0428216,161.3,161.27,7.77062247]
[1762539409820,0.0428216,161.3,161.27,4.83062247]
[1762539410117,0.0428216,161.3,161.27,7.77062247]
[1762539410715,0.0428216,161.3,161.28,2.94]
[1762539412207,7.53699546,161.39,161.28,2.94]
[1762539412208,2.93,161.38,161.28,2.94]
[1762539412408,4.96183846,161.37,161.28,2.94]
[1762539412619,4.96183846,161.36,161.31,2.94]
[1762539412822,2.93,161.39,161.31,2.94]
[1762539413011,4.96153685,161.38,161.31,8.5227]
[1762539413209,2.97596251,161.36,161.33,0.0398683]
[1762539413411,2.93,161.34,161.33,0.0398683]
[1762539413618,7.89513922,161.34,161.33,0.0398683]
[1762539414321,4.96513922,161.34,161.33,0.0398683]
[1762539414618,0.04596251,161.36,161.33,2.9798683]
[1762539414819,4.96902447,161.35,161.33,2.9798683]
[1762539415019,0.04596251,161.36,161.33,2.9798683]
[1762539415219,4.96882925,161.35,161.33,2.9798683]
[1762539415416,0.04596251,161.36,161.33,2.9798683]
[1762539415616,4.97336039,161.35,161.33,2.9798683]
[1762539415824,4.97340598,161.34,161.33,0.0398683]
[1762539416009,0.04596251,161.36,161.33,2.9798683]
[1762539416424,4.9778037,161.35,161.33,2.9798683]
[1762539416608,0.04596251,161.36,161.33,2.9798683]
[1762539416812,4.97805355,161.35,161.33,8.5618683]
[1762539417009,4.97823244,161.34,161.33,0.0398683]
[1762539417212,7.90823244,161.34,161.33,0.0398683]
[1762539418323,8.5124,161.33,161.28,2.94]
[1762539418523,4.97823244,161.32,161.28,2.94]
[1762539418722,4.97823244,161.31,161.28,2.94]
[1762539418918,4.97823244,161.3,161.28,2.94]
[1762539419115,11.31059129,161.34,161.28,2.94]
[1762539419312,5.02504853,161.33,161.29,0.04591396]
[1762539419514,4.98289247,161.32,161.29,2.98591396]
[1762539419715,4.98289247,161.31,161.3,2.94]
[1762539419912,0.04215606,161.33,161.3,2.94]
[1762539420220,0.04215606,161.33,161.29,0.04591396]
[1762539420221,5.72849129,161.38,161.35,2.94]
[1762539420431,4.98274218,161.37,161.35,2.94]
[1762539420616,5.72849129,161.42,161.35,2.94]
[1762539420819,4.98161564,161.41,161.38,2.94]
[1762539421014,4.98161564,161.4,161.38,2.98714392]
[1762539421225,0.04226282,161.41,161.39,2.94]
[1762539421528,4.98368274,161.4,161.38,0.04714392]
[1762539421826,4.98368274,161.39,161.38,2.98714392]
[1762539422121,4.98368274,161.39,161.38,0.04714392]
[1762539422122,4.98388273,161.39,161.38,0.04714392]
[1762539422424,4.98388273,161.39,161.38,3.06714392]
[1762539423227,4.98388273,161.39,161.38,0.04714392]
[1762539423527,0.04226282,161.41,161.39,5.58]
[1762539423724,0.04226282,161.41,161.4,3.02]
[1762539423921,5.02872622,161.41,161.38,0.04714392]
[1762539424221,4.9864634,161.4,161.38,3.06714392]
[1762539424424,0.04226282,161.41,161.38,3.06714392]
[1762539425724,11.53121072,161.49,161.44,3.02]
[1762539425725,8.68559109,161.49,161.44,3.02]
[1762539425916,7.8579391,161.48,161.4,3.02]
[1762539426117,13.61353019,161.47,161.4,3.02]
[1762539426313,10.68353019,161.46,161.4,3.02]
[1762539426517,4.9279391,161.45,161.41,3.0623899]
[1762539426718,4.9279391,161.44,161.41,3.02]
[1762539426928,4.9279391,161.43,161.41,3.06442609]
[1762539427116,2.97622916,161.45,161.41,0.04442609]
[1762539427321,4.93041584,161.44,161.41,0.04442609]
[1762539427530,4.93041584,161.43,161.41,3.06442609]
[1762539427730,0.04622916,161.45,161.41,3.06442609]
[1762539429322,2.97622916,161.45,161.41,0.04442609]
[1762539429518,2.09928655,161.58,161.52,3.02]
[1762539429723,2.93,161.68,161.54,3.02]
[1762539429925,4.84971382,161.67,161.54,3.02]
[1762539430222,2.93,161.68,161.59,3.02]
[1762539430427,4.83617197,161.67,161.59,3.02]
[1762539430629,0.0393565,161.65,161.62,3.06680792]
[1762539432633,8.82592296,161.74,161.62,3.06680792]
[1762539432634,2.93,161.76,161.65,3.02]
[1762539433230,5.5681,161.75,161.66,5.5707]
[1762539433431,2.93,161.75,161.65,3.02]
[1762539433831,0.0467611,161.72,161.68,3.06101586]
[1762539437127,2.93,161.82,161.71,3.02]
[1762539437332,2.93,161.82,161.75,3.02]
[1762539438136,0.04245424,161.8,161.77,0.04319991]
[1762539438328,0.04245424,161.8,161.77,3.06319991]
[1762539442435,0.04245424,161.8,161.77,0.04319991]
[1762539444432,2.93,161.79,161.73,4.31517603]
[1762539444833,0.04245424,161.8,161.73,7.33517603]
[1762539445439,0.04245424,161.8,161.75,0.04731435]
[1762539445640,0.04245424,161.8,161.75,3.06731435]
[1762539445832,2.97245424,161.8,161.75,0.04731435]
[1762539446541,0.04245424,161.8,161.75,3.06731435]
[1762539446741,2.93,161.89,161.77,3.02]
[1762539447042,2.93,161.89,161.79,3.02]
[1762539447740,2.93,161.85,161.82,0.04057841]
[1762539447939,2.96985683,161.85,161.82,0.04057841]
[1762539448643,0.03985683,161.85,161.82,3.06057841]
[1762539449541,63.72,161.91,161.82,3.06057841]
[1762539450146,63.72,161.91,161.85,3.02]
[1762539450539,0.04146689,161.9,161.87,3.02]
[1762539451642,2.97146689,161.9,161.86,0.03932262]
[1762539452138,0.04146689,161.9,161.86,2.94932262]
[1762539452545,0.04146689,161.9,161.86,0.03932262]
[1762539452737,2.90146689,161.9,161.86,0.03932262]
[1762539453950,5.5636,161.88,161.86,0.03932262]
[1762539454146,8.4236,161.88,161.86,0.03932262]
[1762539454447,2.86,161.87,161.86,0.03932262]
[1762539455242,8.424,161.86,161.85,2.262e-05]
[1762539455445,2.86,161.86,161.79,2.91]
[1762539456044,2.86,161.86,161.75,8.4776]
[1762539456045,5.5649,161.84,161.75,8.4776]
[1762539456345,8.82592296,161.89,161.79,2.91]
[1762539456346,0.04248661,161.81,161.79,2.91]
[1762539456648,5.5628,161.9,161.79,2.91]
[1762539456849,5.5628,161.9,161.81,8.4754]
[1762539457146,2.86,161.9,161.81,8.4754]
[1762539457542,0.04112927,161.87,161.84,0.04720089]
[1762539457748,2.90112927,161.87,161.84,0.04720089]
[1762539458253,5.5642,161.86,161.84,0.04720089]
[1762539458452,8.4242,161.86,161.84,0.04720089]
[1762539459446,2.86,161.85,161.84,0.04720089]
[1762539461149,5.5658,161.81,161.77,2.91]
[1762539462249,8.64657747,161.81,161.77,0.04529467]
[1762539463846,3.04,161.79,161.77,0.04529467]
[1762539464655,3.04,161.78,161.77,0.04529467]
[1762539465952,3.04,161.76,161.73,4.31517603]
[1762539466149,3.04,161.76,161.65,21.94256681]
[1762539466350,3.04,161.73,161.62,2.96]
[1762539466544,5.5691,161.71,161.62,2.96]
[1762539466746,86.5756,161.82,161.62,2.96]
[1762539466747,3.04,161.76,161.62,2.96]
[1762539466947,0.04002515,161.71,161.68,2.96]
[1762539467149,0.0425094,161.71,161.68,2.99986106]
[1762539469752,0.0425094,161.71,161.7,2.96]
[1762539469951,5.5672,161.77,161.7,2.96]
[1762539470358,3.04,161.8,161.7,2.96]
[1762539470854,3.04,161.78,161.7,2.96]
[1762539471056,3.04,161.76,161.73,0.04422228]
[1762539471958,5.5679,161.75,161.73,0.04422228]
[1762539472162,3.04,161.74,161.73,0.04422228]
[1762539472357,7.7460693,161.74,161.73,0.04422228]
[1762539473655,5.5688,161.72,161.66,2.96]
[1762539473956,4.7060693,161.71,161.66,2.96]
[1762539474156,4.7060693,161.7,161.66,2.96]
[1762539474462,4.7060693,161.69,161.66,2.96]
[1762539474664,4.7060693,161.68,161.66,3.00736019]
[1762539474970,4.7060693,161.67,161.66,0.04736019]
[1762539475773,4.7060693,161.67,161.66,3.00736019]
[1762539476764,0.04014679,161.7,161.69,8.5298]
[1762539477556,10.48357639,161.76,161.71,2.96]
[1762539477955,3.04,161.75,161.7,5.5692]
[1762539478166,10.48357639,161.75,161.68,2.96]
[1762539478466,0.04347469,161.73,161.7,3.00476298]
[1762539479367,0.04347469,161.73,161.7,8.57396298]
[1762539479569,0.04347469,161.73,161.7,3.00476298]
[1762539480470,0.04347469,161.73,161.72,2.96]
[1762539481165,10.48357639,161.78,161.72,1.24]
[1762539481365,7.44357639,161.75,161.7,2.96]
[1762539481567,7.44357639,161.73,161.63,2.96]
[1762539481762,13.01207639,161.73,161.67,5.5702]
[1762539481963,13.01207639,161.73,161.67,8.5302]
[1762539482171,0.04333453,161.72,161.71,3.03]
[1762539483368,0.04333453,161.72,161.68,0.04221572]
[1762539483369,0.04333453,161.72,161.69,3.03]
[1762539483665,0.04333453,161.72,161.68,5.61211572]
[1762539483666,0.04333453,161.72,161.68,3.07221572]
[1762539483872,3.09333453,161.72,161.68,3.07221572]
[1762539484166,3.09333453,161.72,161.68,0.04221572]
[1762539484375,3.05,161.7,161.68,0.04221572]
[1762539484675,3.05,161.68,161.61,3.03]
[1762539484863,3.05,161.67,161.59,11.2931]
[1762539485064,3.05,161.67,161.59,14.3231]
[1762539485269,7.44357639,161.68,161.6,3.03]
[1762539485569,3.05,161.71,161.66,3.03]
[1762539485771,0.03931122,161.7,161.67,3.07402391]
[1762539485972,0.04181174,161.7,161.67,0.0450564]
[1762539486362,0.04181174,161.7,161.67,3.0750564]
[1762539486567,0.04181174,161.7,161.67,8.6453564]
[1762539486768,0.04181174,161.7,161.68,3.03]
[1762539487869,0.04181174,161.7,161.68,8.5999]
[1762539488179,3.05,161.83,161.69,4.27]
[1762539488387,3.05,161.83,161.65,11.1422]
[1762539488388,3.05,161.83,161.75,5.5675]
[1762539488869,4.60834952,161.82,161.76,5.5672]
[1762539489069,3.09604191,161.81,161.77,0.04160781]
[1762539489272,3.05,161.81,161.73,3.03]
[1762539489591,0.04672332,161.81,161.77,3.07359305]
[1762539489792,0.04118285,161.81,161.77,3.07271486]
[1762539489966,0.04118285,161.81,161.78,8.5965]
[1762539490280,0.04118285,161.81,161.79,3.03]
[1762539492981,0.04118285,161.81,161.77,3.07271486]
[1762539495581,4.6211986,161.8,161.77,0.04271486]
[1762539495782,3.09118285,161.81,161.77,0.04271486]
[1762539495783,8.65718285,161.81,161.77,0.04271486]
[1762539496082,3.05,161.79,161.69,3.03]
[1762539496384,7.67147829,161.78,161.69,3.03]
[1762539496586,7.67147829,161.77,161.69,3.03]
[1762539496774,3.05,161.77,161.69,3.03]
[1762539496977,0.04103122,161.75,161.71,0.0452882]
[1762539497186,0.04103122,161.75,161.71,3.0752882]
[1762539499484,3.09103122,161.75,161.71,3.0752882]
[1762539499692,3.09103122,161.75,161.71,0.0452882]
[1762539499988,3.05,161.74,161.71,0.0452882]
[1762539500585,8.6183,161.74,161.71,0.0452882]
[1762539501590,3.05,161.74,161.71,0.0452882]
[1762539502886,3.09103122,161.75,161.71,0.0452882]
[1762539503495,8.65903122,161.75,161.71,0.0452882]
[1762539504091,0.04103122,161.75,161.71,3.0752882]
[1762539504789,3.09103122,161.75,161.71,0.0452882]
[1762539506082,0.04103122,161.75,161.71,3.0752882]
[1762539506682,0.04103122,161.75,161.72,3.03]
[1762539507192,3.09103122,161.75,161.71,0.0452882]
[1762539508584,5.5686,161.73,161.71,0.0452882]
[1762539508787,3.05,161.72,161.71,0.0452882]
[1762539509798,3.05,161.74,161.71,0.0452882]
[1762539511586,0.04103122,161.75,161.71,0.0452882]
[1762539511789,0.04103122,161.75,161.71,3.0752882]
[1762539512796,191.29357271,161.87,161.76,3.07]
[1762539513000,2.9,161.92,161.78,3.07]
[1762539513195,2.9,161.92,161.82,3.07]
[1762539513606,1.07518576,161.95,161.84,3.07]
[1762539513800,0.0393622,161.89,161.86,3.07]
[1762539514006,2.9,161.93,161.86,3.07]
[1762539514305,0.04012719,161.89,161.86,3.11311803]
[1762539515407,0.04012719,161.89,161.86,0.04311803]
[1762539515608,2.94012719,161.89,161.86,0.04311803]
[1762539516602,8.4635,161.88,161.86,0.04311803]
[1762539517003,2.9,161.87,161.86,0.04311803]
[1762539518899,0.04012719,161.89,161.86,0.04311803]
[1762539519105,2.94012719,161.89,161.86,0.04311803]
[1762539520206,2.9,161.87,161.86,0.04311803]
[1762539520599,2.91,161.85,161.83,4.94077879]
[1762539520799,2.91,161.85,161.77,3.07]
[1762539521210,8.4755,161.82,161.73,5.5683]
[1762539521403,8.77702311,161.89,161.72,3.0]
[1762539521404,2.91,161.81,161.72,3.0]
[1762539521806,0.04506468,161.78,161.75,0.04460985]
[1762539522003,5.75415641,161.88,161.75,3.04460985]
[1762539522207,14.53117952,161.95,161.75,3.0]
[1762539522409,4.54621493,161.94,161.75,3.0]
[1762539522609,4.54621493,161.93,161.79,3.0]
[1762539522810,4.54621493,161.92,161.79,3.0]
[1762539523015,4.54621493,161.91,161.79,3.0]
[1762539523216,0.04195644,161.87,161.84,0.04632338]
[1762539523411,0.04343588,161.87,161.84,0.04738354]
[1762539525829,0.04343588,161.87,161.84,3.04738354]
[1762539526908,66.04,161.94,161.84,3.04738354]
[1762539527107,2.46,161.94,161.84,3.0]
[1762539527510,2.46,161.92,161.84,3.0]
[1762539527910,0.04266347,161.9,161.86,0.04594918]
[1762539528314,8.0229,161.89,161.86,0.04594918]
[1762539528616,5.5629,161.89,161.86,0.04594918]
[1762539528816,0.04266347,161.9,161.86,0.04594918]
[1762539529919,2.46,161.88,161.86,0.04594918]
[1762539531524,0.04266347,161.9,161.86,0.04594918]
[1762539531525,2.50266347,161.9,161.86,0.04594918]
[1762539532117,0.04266347,161.9,161.86,3.04594918]
[1762539536026,0.04266347,161.9,161.86,8.60964918]
[1762539536226,0.04266347,161.9,161.87,3.0]
[1762539537126,0.04266347,161.9,161.87,8.5634]
[1762539537424,0.04266347,161.9,161.87,3.0]
[1762539538126,5.561,161.95,161.89,3.0]
[1762539539026,5.5603,161.97,161.9,8.5625]
[1762539539231,8.0203,161.97,161.92,3.04440083]
[1762539539527,2.46,161.97,161.92,3.04440083]
[1762539540124,63.58,162.01,161.92,3.04440083]
[1762539540125,5.5599,161.98,161.92,3.04440083]
[1762539540625,66.04,162.01,161.92,3.04440083]
[1762539540626,63.58,162.01,161.92,3.04440083]
[1762539541129,11.1127,162.09,161.92,3.04440083]
[1762539541130,8.21415641,162.09,161.92,3.04440083]
[1762539541335,4.70082522,162.08,161.95,3.0]
[1762539541531,2.46,162.09,162.0,8.5589]
[1762539541828,2.46,162.09,162.0,3.0]
[1762539542130,2.45,162.05,162.03,0.04278367]
[1762539542433,2.45,162.05,161.93,3.01]
[1762539542727,5.559,162.01,161.93,3.01]
[1762539542931,2.45,162.02,161.93,3.01]
[1762539543130,2.45,162.01,161.88,3.01]
[1762539543337,0.04529368,161.96,161.93,0.03959705]
[1762539543725,2.49529368,161.96,161.93,0.03959705]
[1762539543932,0.04529368,161.96,161.93,0.03959705]
[1762539544128,0.04529368,161.96,161.93,3.04959705]
[1762539544630,65.99,162.04,161.94,3.01]
[1762539545031,65.99,162.04,161.95,3.01]
[1762539545529,8.009,162.01,161.98,0.04646865]
[1762539546037,63.54,162.04,161.98,0.04646865]
[1762539546338,2.45,162.09,161.98,3.05646865]
[1762539546522,4.6940103,162.08,162.02,0.03989286]
[1762539546728,2.45,162.09,162.02,0.03989286]
[1762539546922,2.45,162.08,162.02,0.03989286]
[1762539547126,2.45,162.08,162.03,0.04604631]
[1762539547529,2.45,162.08,162.03,3.05604631]
[1762539547734,2.45,162.08,162.03,0.04604631]
[1762539547928,5.557,162.07,162.03,0.04604631]
[1762539548126,2.45,162.08,162.03,0.04604631]
[1762539548331,2.45,162.08,162.03,3.05604631]
[1762539548530,2.45,162.08,162.03,0.04604631]
[1762539548931,2.45,162.17,162.03,3.05604631]
[1762539549138,2.45,162.15,162.03,3.01]
[1762539549437,8.0042,162.15,162.08,0.04440485]
[1762539549635,2.45,162.15,162.08,0.04440485]
[1762539550029,5.5535,162.17,162.08,3.05440485]
[1762539550232,63.52,162.2,162.08,3.05440485]
[1762539550434,7.13140731,162.19,162.12,0.04562671]
[1762539550624,2.45,162.19,162.12,0.04562671]
[1762539552936,2.45,162.17,162.12,0.04562671]
[1762539553138,7.12240763,162.16,162.12,0.04562671]
[1762539553337,8.0038,162.16,162.12,0.04562671]
[1762539553741,2.45,162.15,162.12,0.04562671]
[1762539554944,63.5,162.19,162.12,0.04562671]
[1762539555127,4.67170477,162.18,162.12,0.04562671]
[1762539555333,65.95,162.19,162.12,3.05562671]
[1762539555738,65.95,162.19,162.12,0.04562671]
[1762539555940,7.12078695,162.18,162.12,0.04562671]
[1762539556139,2.45,162.16,162.12,0.04562671]
[1762539556338,4.67078695,162.17,162.12,0.04562671]
[1762539556339,2.45,162.13,162.12,0.04562671]
[1762539556737,5.5547,162.14,162.12,0.04562671]
[1762539556940,8.0047,162.14,162.12,0.04562671]
[1762539557136,2.45,162.13,162.12,0.04562671]
[1762539557444,2.45,162.15,162.12,0.04562671]
[1762539557831,69.17013308,162.19,162.12,0.04562671]
[1762539557832,71.62013308,162.19,162.12,0.04562671]
[1762539558032,8.0036,162.17,162.12,0.04562671]
[1762539558331,4.67319153,162.16,162.12,0.04562671]
[1762539558537,69.0529,162.19,162.12,3.05562671]
[1762539558757,4.67044764,162.18,162.12,3.05562671]
[1762539558936,63.5,162.19,162.12,3.05562671]
[1762539559235,7.44357639,162.24,162.12,3.05562671]
[1762539559236,5.67139026,162.24,162.12,3.05562671]
[1762539559434,2.45,162.26,162.16,5.60111743]
[1762539559634,4.66567423,162.25,162.16,8.5636]
[1762539559940,7.11567423,162.24,162.19,0.04661363]
[1762539560141,5.67139026,162.29,162.19,3.01]
[1762539560442,2.45,162.33,162.21,3.01]
[1762539560637,5.5499,162.27,162.21,3.01]
[1762539560947,7.9999,162.27,162.25,0.041834]
[1762539561140,2.45,162.27,162.25,0.041834]
[1762539561747,8.0,162.27,162.25,0.041834]
[1762539561945,2.45,162.26,162.25,0.041834]